[Event "Early-Titled-Tuesday-Blitz-September-12-2023"]
[Site "Chess.com"]
[Date "2023.09.12"]
[Round "9"]
[White "lamomiajunior"]
[Black "YEIKO2017"]
[Result "1/2-1/2"]
[WhiteElo "2691"]
[BlackElo "2529"]
[TimeControl "180+1"]
[EndTime "9:45:23 PDT"]
[Termination "Game drawn by repetition"]

1. d4 {[%clk 0:03:00.9]} 1... Nf6 {[%clk 0:02:58.5]} 2. c4 {[%clk 0:03:01.1]}
2... e5 {[%clk 0:02:57.5]} 3. dxe5 {[%clk 0:03:00.6]} 3... Ng4 {[%clk
0:02:57.5]} 4. e3 {[%clk 0:03:01]} 4... Nxe5 {[%clk 0:02:56.7]} 5. f4 {[%clk
0:03:01.5]} 5... Nec6 {[%clk 0:02:53.7]} 6. Nc3 {[%clk 0:02:57.5]} 6... Bc5
{[%clk 0:02:51.9]} 7. Bd3 {[%clk 0:02:52.3]} 7... Qh4+ {[%clk 0:02:46.3]} 8. g3
{[%clk 0:02:47.3]} 8... Qd8 {[%clk 0:02:45.8]} 9. Nf3 {[%clk 0:02:46.2]} 9... d6
{[%clk 0:02:44.9]} 10. O-O {[%clk 0:02:23.7]} 10... Nd7 {[%clk 0:02:38.8]} 11.
a3 {[%clk 0:02:23.3]} 11... a5 {[%clk 0:02:36.4]} 12. Kg2 {[%clk 0:02:20.1]}
12... Nf6 {[%clk 0:02:32.4]} 13. Nd5 {[%clk 0:02:14.7]} 13... O-O {[%clk
0:02:29]} 14. Qc2 {[%clk 0:02:12.2]} 14... h6 {[%clk 0:02:26.2]} 15. Bd2 {[%clk
0:02:09.1]} 15... a4 {[%clk 0:02:14.8]} 16. Nxf6+ {[%clk 0:01:58]} 16... Qxf6
{[%clk 0:02:14.7]} 17. Bc3 {[%clk 0:01:58.5]} 17... Qe7 {[%clk 0:02:15.2]} 18.
Rae1 {[%clk 0:01:54.2]} 18... Bg4 {[%clk 0:02:01.5]} 19. Nd4 {[%clk 0:01:35.1]}
19... Qd7 {[%clk 0:01:49.2]} 20. Nf5 {[%clk 0:01:23.8]} 20... f6 {[%clk
0:01:37.2]} 21. h3 {[%clk 0:01:20.5]} 21... Bh5 {[%clk 0:01:35.9]} 22. Nh4
{[%clk 0:01:10.6]} 22... Ne7 {[%clk 0:01:18.9]} 23. Kh2 {[%clk 0:00:50.7]} 23...
f5 {[%clk 0:01:11.4]} 24. e4 {[%clk 0:00:44.3]} 24... fxe4 {[%clk 0:01:10.1]}
25. Bxe4 {[%clk 0:00:45.2]} 25... Rae8 {[%clk 0:01:04.1]} 26. f5 {[%clk
0:00:41.8]} 26... Nc6 {[%clk 0:00:59.6]} 27. f6 {[%clk 0:00:38.7]} 27... gxf6
{[%clk 0:00:48.1]} 28. Nf5 {[%clk 0:00:34.5]} 28... Ne5 {[%clk 0:00:35.1]} 29.
Nxh6+ {[%clk 0:00:30.2]} 29... Kh8 {[%clk 0:00:35.3]} 30. g4 {[%clk 0:00:28.5]}
30... Bf7 {[%clk 0:00:21.1]} 31. Rxf6 {[%clk 0:00:20.1]} 31... Bxc4 {[%clk
0:00:21.5]} 32. Bxe5 {[%clk 0:00:19.3]} 32... dxe5 {[%clk 0:00:16.3]} 33. Rxf8+
{[%clk 0:00:16]} 33... Rxf8 {[%clk 0:00:17.2]} 34. Qxc4 {[%clk 0:00:15.6]} 34...
Qd2+ {[%clk 0:00:16.8]} 35. Re2 {[%clk 0:00:10.8]} 35... Rf2+ {[%clk 0:00:17.2]}
36. Rxf2 {[%clk 0:00:10]} 36... Qxf2+ {[%clk 0:00:17.2]} 37. Bg2 {[%clk
0:00:10.5]} 37... Qg1+ {[%clk 0:00:12.9]} 38. Kg3 {[%clk 0:00:11]} 38... Qf2+
{[%clk 0:00:13.5]} 39. Kh2 {[%clk 0:00:11.2]} 39... Qg1+ {[%clk 0:00:13.7]} 40.
Kg3 {[%clk 0:00:11.8]} 40... Qf2+ {[%clk 0:00:11.5]} 41. Kh2 {[%clk 0:00:12.1]}
1/2-1/2

[Event "Early-Titled-Tuesday-Blitz-September-12-2023"]
[Site "Chess.com"]
[Date "2023.09.12"]
[Round "9"]
[White "Ducke13"]
[Black "Let_it_be_1"]
[Result "0-1"]
[WhiteElo "2481"]
[BlackElo "2661"]
[TimeControl "180+1"]
[EndTime "9:45:26 PDT"]
[Termination "Let_it_be_1 won on time"]

1. d4 {[%clk 0:02:53.3]} 1... d5 {[%clk 0:02:58.9]} 2. g3 {[%clk 0:02:53.3]}
2... e6 {[%clk 0:02:58.8]} 3. c4 {[%clk 0:02:48.1]} 3... Nf6 {[%clk 0:02:58.9]}
4. Bg2 {[%clk 0:02:45]} 4... Be7 {[%clk 0:02:58.9]} 5. Nf3 {[%clk 0:02:43.5]}
5... O-O {[%clk 0:02:59.3]} 6. O-O {[%clk 0:02:43.9]} 6... dxc4 {[%clk
0:02:59.2]} 7. Qc2 {[%clk 0:02:44.5]} 7... a6 {[%clk 0:02:58.9]} 8. a4 {[%clk
0:02:44.7]} 8... Bd7 {[%clk 0:02:58]} 9. Rd1 {[%clk 0:02:45.2]} 9... Bc6 {[%clk
0:02:55.4]} 10. Nc3 {[%clk 0:02:45.4]} 10... Bxf3 {[%clk 0:02:38.2]} 11. Bxf3
{[%clk 0:02:46.3]} 11... Nc6 {[%clk 0:02:38.4]} 12. Bxc6 {[%clk 0:02:45.9]}
12... bxc6 {[%clk 0:02:38.4]} 13. a5 {[%clk 0:02:43.5]} 13... Rb8 {[%clk
0:02:32.4]} 14. Bg5 {[%clk 0:02:43.5]} 14... Nd5 {[%clk 0:02:30.5]} 15. Bxe7
{[%clk 0:02:38.2]} 15... Qxe7 {[%clk 0:02:30.4]} 16. Ne4 {[%clk 0:02:28.2]}
16... Qb4 {[%clk 0:02:15.7]} 17. Ra4 {[%clk 0:01:48.8]} 17... Qxb2 {[%clk
0:02:08.5]} 18. Rxc4 {[%clk 0:01:48.3]} 18... Qa3 {[%clk 0:01:37]} 19. Ra4
{[%clk 0:01:30.8]} 19... Qe7 {[%clk 0:01:35.4]} 20. Qxc6 {[%clk 0:01:22.8]}
20... Rb2 {[%clk 0:01:28.1]} 21. Re1 {[%clk 0:00:42.2]} 21... Qe8 {[%clk
0:01:02.1]} 22. Qxe8 {[%clk 0:00:39.4]} 22... Rxe8 {[%clk 0:01:01.6]} 23. e3
{[%clk 0:00:25.7]} 23... e5 {[%clk 0:00:54.2]} 24. dxe5 {[%clk 0:00:21.5]} 24...
Rxe5 {[%clk 0:00:53.4]} 25. Rd1 {[%clk 0:00:20.6]} 25... h6 {[%clk 0:00:41.4]}
26. Rad4 {[%clk 0:00:19.3]} 26... Rb5 {[%clk 0:00:35.8]} 27. Rc1 {[%clk
0:00:12.7]} 27... Rb4 {[%clk 0:00:17.3]} 28. Nc5 {[%clk 0:00:08.2]} 28... Rb5
{[%clk 0:00:10.9]} 29. Nxa6 {[%clk 0:00:07]} 29... Rxa5 {[%clk 0:00:10.6]} 30.
Nxc7 {[%clk 0:00:07.4]} 30... Nf6 {[%clk 0:00:07.2]} 31. Rd8+ {[%clk 0:00:06.8]}
31... Kh7 {[%clk 0:00:07.2]} 32. Rc8 {[%clk 0:00:03.9]} 32... Ra2 {[%clk
0:00:06.4]} 33. Ra8 {[%clk 0:00:02.2]} 33... Rb2 {[%clk 0:00:04.7]} 34. Ra7
{[%clk 0:00:02.2]} 34... Rf5 {[%clk 0:00:03.5]} 0-1

[Event "Early-Titled-Tuesday-Blitz-September-12-2023"]
[Site "Chess.com"]
[Date "2023.09.12"]
[Round "9"]
[White "DopplerCharlotteDeWitte"]
[Black "Arystanner"]
[Result "1/2-1/2"]
[WhiteElo "2699"]
[BlackElo "2836"]
[TimeControl "180+1"]
[EndTime "9:45:33 PDT"]
[Termination "Game drawn by repetition"]

1. e4 {[%clk 0:03:00.9]} 1... c5 {[%clk 0:02:59.5]} 2. b4 {[%clk 0:03:01.1]}
2... cxb4 {[%clk 0:02:59.2]} 3. a3 {[%clk 0:03:01.4]} 3... d5 {[%clk 0:02:59.7]}
4. exd5 {[%clk 0:03:02.3]} 4... Nf6 {[%clk 0:03:00.1]} 5. axb4 {[%clk 0:03:02]}
5... Nxd5 {[%clk 0:03:00.2]} 6. b5 {[%clk 0:03:00.6]} 6... e5 {[%clk 0:02:59.5]}
7. Bc4 {[%clk 0:02:55.8]} 7... Nb6 {[%clk 0:02:55.3]} 8. Bb3 {[%clk 0:02:52.4]}
8... Bc5 {[%clk 0:02:40.5]} 9. Nc3 {[%clk 0:02:21.9]} 9... O-O {[%clk
0:02:38.1]} 10. Qh5 {[%clk 0:02:19.8]} 10... g6 {[%clk 0:02:31.4]} 11. Qe2
{[%clk 0:02:04.8]} 11... Bf5 {[%clk 0:02:26.5]} 12. Bb2 {[%clk 0:02:00.6]} 12...
N8d7 {[%clk 0:02:22.1]} 13. g4 {[%clk 0:01:55.2]} 13... Be6 {[%clk 0:02:22.5]}
14. Bxe6 {[%clk 0:01:55.4]} 14... fxe6 {[%clk 0:02:23.4]} 15. Nf3 {[%clk
0:01:53.1]} 15... Qf6 {[%clk 0:02:21.7]} 16. Ng1 {[%clk 0:01:43]} 16... Bxf2+
{[%clk 0:02:10.5]} 17. Kd1 {[%clk 0:01:42.7]} 17... Bd4 {[%clk 0:02:09.2]} 18.
Nh3 {[%clk 0:01:27.6]} 18... Nc5 {[%clk 0:02:07.1]} 19. Ne4 {[%clk 0:01:12.4]}
19... Nxe4 {[%clk 0:02:07.3]} 20. Bxd4 {[%clk 0:01:12.6]} 20... exd4 {[%clk
0:01:57.6]} 21. Qxe4 {[%clk 0:01:12.8]} 21... d3 {[%clk 0:01:55.2]} 22. c3
{[%clk 0:01:00]} 22... Nc4 {[%clk 0:01:45.7]} 23. Kc1 {[%clk 0:00:52.5]} 23...
Qf1+ {[%clk 0:01:36.6]} 24. Qe1 {[%clk 0:00:49.7]} 24... Qxe1+ {[%clk
0:01:33.6]} 25. Rxe1 {[%clk 0:00:50.6]} 25... e5 {[%clk 0:01:31.3]} 26. Ra4
{[%clk 0:00:46.8]} 26... Nb6 {[%clk 0:01:25.3]} 27. Rae4 {[%clk 0:00:44.2]}
27... Rae8 {[%clk 0:01:15]} 28. R1e3 {[%clk 0:00:26.5]} 28... Nd7 {[%clk
0:01:09.3]} 29. Rc4 {[%clk 0:00:22.4]} 29... Rf1+ {[%clk 0:00:56.7]} 30. Kb2
{[%clk 0:00:22.5]} 30... e4 {[%clk 0:00:57.4]} 31. Rexe4 {[%clk 0:00:19.1]}
31... Rxe4 {[%clk 0:00:58.3]} 32. Rxe4 {[%clk 0:00:19.9]} 32... Rd1 {[%clk
0:00:59]} 33. c4 {[%clk 0:00:18.5]} 33... Rxd2+ {[%clk 0:00:55.4]} 34. Kc3
{[%clk 0:00:18.9]} 34... Rxh2 {[%clk 0:00:56.2]} 35. Ng5 {[%clk 0:00:17.8]}
35... d2 {[%clk 0:00:56]} 36. Rd4 {[%clk 0:00:17.3]} 36... Ne5 {[%clk
0:00:39.5]} 37. c5 {[%clk 0:00:17.5]} 37... h6 {[%clk 0:00:38.4]} 38. Ne4 {[%clk
0:00:15.1]} 38... Nf3 {[%clk 0:00:38.6]} 39. Rd7 {[%clk 0:00:13.8]} 39... h5
{[%clk 0:00:32.7]} 40. Nf6+ {[%clk 0:00:13.3]} 40... Kf8 {[%clk 0:00:31.7]} 41.
Nh7+ {[%clk 0:00:12.9]} 41... Ke8 {[%clk 0:00:32.3]} 42. Nf6+ {[%clk 0:00:13.8]}
42... Kf8 {[%clk 0:00:33.1]} 43. gxh5 {[%clk 0:00:05]} 43... gxh5 {[%clk
0:00:32.8]} 44. c6 {[%clk 0:00:03.3]} 44... bxc6 {[%clk 0:00:33.7]} 45. bxc6
{[%clk 0:00:04.2]} 45... Rh1 {[%clk 0:00:34]} 46. Nh7+ {[%clk 0:00:02.4]} 46...
Kg8 {[%clk 0:00:33.7]} 47. Nf6+ {[%clk 0:00:03.3]} 47... Kf8 {[%clk 0:00:34.3]}
48. Nh7+ {[%clk 0:00:03]} 48... Kg8 {[%clk 0:00:34.9]} 49. Nf6+ {[%clk
0:00:03.9]} 49... Kf8 {[%clk 0:00:35.5]} 1/2-1/2

[Event "Early-Titled-Tuesday-Blitz-September-12-2023"]
[Site "Chess.com"]
[Date "2023.09.12"]
[Round "9"]
[White "Aygehovit1992"]
[Black "MatthewG-p4p"]
[Result "0-1"]
[WhiteElo "2721"]
[BlackElo "2884"]
[TimeControl "180+1"]
[EndTime "9:45:38 PDT"]
[Termination "MatthewG-p4p won on time"]

1. e4 {[%clk 0:02:47.8]} 1... e6 {[%clk 0:02:59.6]} 2. d4 {[%clk 0:02:47]} 2...
d5 {[%clk 0:03:00.4]} 3. Nc3 {[%clk 0:02:46.9]} 3... Bb4 {[%clk 0:03:00.5]} 4.
Ne2 {[%clk 0:02:47.4]} 4... Nf6 {[%clk 0:02:57.1]} 5. e5 {[%clk 0:02:46]} 5...
Nfd7 {[%clk 0:02:57]} 6. f4 {[%clk 0:02:45.7]} 6... b6 {[%clk 0:02:47.8]} 7. a3
{[%clk 0:02:39.6]} 7... Be7 {[%clk 0:02:47.8]} 8. f5 {[%clk 0:02:37.8]} 8... c5
{[%clk 0:02:41.7]} 9. fxe6 {[%clk 0:02:35.5]} 9... fxe6 {[%clk 0:02:42.6]} 10.
Nf4 {[%clk 0:02:35.8]} 10... Nf8 {[%clk 0:02:34.3]} 11. Qg4 {[%clk 0:02:18.9]}
11... Qd7 {[%clk 0:01:37.1]} 12. Bb5 {[%clk 0:02:07]} 12... Nc6 {[%clk 0:01:36]}
13. O-O {[%clk 0:02:06.3]} 13... g6 {[%clk 0:01:16.9]} 14. Be3 {[%clk
0:01:32.3]} 14... a6 {[%clk 0:01:13]} 15. Bxc6 {[%clk 0:01:29.2]} 15... Qxc6
{[%clk 0:01:13.9]} 16. Nfe2 {[%clk 0:01:08.3]} 16... h6 {[%clk 0:00:46]} 17. Rf2
{[%clk 0:00:56.3]} 17... Bd7 {[%clk 0:00:42.4]} 18. Raf1 {[%clk 0:00:56.1]}
18... O-O-O {[%clk 0:00:43.1]} 19. Rf7 {[%clk 0:00:54.6]} 19... Re8 {[%clk
0:00:41.9]} 20. Nf4 {[%clk 0:00:40.7]} 20... cxd4 {[%clk 0:00:35]} 21. Bxd4
{[%clk 0:00:39.8]} 21... h5 {[%clk 0:00:33.5]} 22. Qg3 {[%clk 0:00:38]} 22... g5
{[%clk 0:00:32.1]} 23. Nd3 {[%clk 0:00:31.3]} 23... Ng6 {[%clk 0:00:25]} 24. Nb4
{[%clk 0:00:27.9]} 24... Qc4 {[%clk 0:00:12]} 25. Bxb6 {[%clk 0:00:27]} 25...
Nf4 {[%clk 0:00:11.4]} 26. Rxe7 {[%clk 0:00:17.8]} 26... Rxe7 {[%clk 0:00:11.5]}
27. Qxg5 {[%clk 0:00:18]} 27... Rf7 {[%clk 0:00:07.9]} 28. Nd3 {[%clk 0:00:15]}
28... Rhf8 {[%clk 0:00:03.9]} 29. Rxf4 {[%clk 0:00:09.2]} 29... Rxf4 {[%clk
0:00:04.7]} 30. Nxf4 {[%clk 0:00:09.3]} 30... Qxf4 {[%clk 0:00:05.6]} 31. Qxf4
{[%clk 0:00:06.6]} 31... Rxf4 {[%clk 0:00:06.5]} 32. g3 {[%clk 0:00:05.6]} 32...
Rc4 {[%clk 0:00:06.8]} 33. Kf2 {[%clk 0:00:02.7]} 33... d4 {[%clk 0:00:07.1]}
34. Ne4 {[%clk 0:00:02.6]} 34... Rxc2+ {[%clk 0:00:07.8]} 35. Ke1 {[%clk
0:00:01.7]} 35... d3 {[%clk 0:00:07.9]} 36. Nd6+ {[%clk 0:00:01.6]} 36... Kb8
{[%clk 0:00:07.7]} 37. Bd4 {[%clk 0:00:01.6]} 37... Re2+ {[%clk 0:00:07.4]} 38.
Kd1 {[%clk 0:00:01.5]} 38... Ba4+ {[%clk 0:00:07.7]} 39. Kc1 {[%clk 0:00:01.3]}
39... d2+ {[%clk 0:00:08]} 0-1

[Event "Early-Titled-Tuesday-Blitz-September-12-2023"]
[Site "Chess.com"]
[Date "2023.09.12"]
[Round "9"]
[White "younix2022"]
[Black "LamaChampetre"]
[Result "1-0"]
[WhiteElo "2050"]
[BlackElo "2239"]
[TimeControl "180+1"]
[EndTime "9:45:38 PDT"]
[Termination "younix2022 won on time"]

1. Nf3 {[%clk 0:02:46.4]} 1... g6 {[%clk 0:02:53.2]} 2. c4 {[%clk 0:02:45.5]}
2... c5 {[%clk 0:02:51.7]} 3. Nc3 {[%clk 0:02:46.4]} 3... Nc6 {[%clk 0:02:51.7]}
4. g3 {[%clk 0:02:46.6]} 4... Bg7 {[%clk 0:02:50.8]} 5. Bg2 {[%clk 0:02:47.5]}
5... e6 {[%clk 0:02:51.3]} 6. O-O {[%clk 0:02:48.4]} 6... Nge7 {[%clk
0:02:51.9]} 7. Rb1 {[%clk 0:02:46.3]} 7... d5 {[%clk 0:02:50.8]} 8. cxd5 {[%clk
0:02:46.4]} 8... exd5 {[%clk 0:02:50.6]} 9. e3 {[%clk 0:02:45.1]} 9... O-O
{[%clk 0:02:37.7]} 10. d4 {[%clk 0:02:44.4]} 10... Bg4 {[%clk 0:02:37.8]} 11. h3
{[%clk 0:02:44]} 11... Bxf3 {[%clk 0:02:37.4]} 12. Bxf3 {[%clk 0:02:42.1]} 12...
cxd4 {[%clk 0:02:37.9]} 13. exd4 {[%clk 0:02:41.4]} 13... Nxd4 {[%clk
0:02:38.2]} 14. Bg2 {[%clk 0:02:35]} 14... Qd7 {[%clk 0:02:21.8]} 15. Bg5 {[%clk
0:02:32.2]} 15... Ndf5 {[%clk 0:02:01.1]} 16. Nxd5 {[%clk 0:02:25.7]} 16... Nxd5
{[%clk 0:01:59.6]} 17. Qxd5 {[%clk 0:02:25]} 17... Qa4 {[%clk 0:01:39.8]} 18. a3
{[%clk 0:02:09.2]} 18... Nd4 {[%clk 0:01:34.3]} 19. Qxb7 {[%clk 0:02:02.6]}
19... Rab8 {[%clk 0:01:31.4]} 20. Qe4 {[%clk 0:01:57.3]} 20... Rfe8 {[%clk
0:01:30.3]} 21. Qd3 {[%clk 0:01:42.4]} 21... Rb3 {[%clk 0:00:33.4]} 22. Qd1
{[%clk 0:01:33.2]} 22... Qb5 {[%clk 0:00:31.5]} 23. Be3 {[%clk 0:01:25.8]} 23...
Nf5 {[%clk 0:00:28.5]} 24. Bf4 {[%clk 0:01:19.9]} 24... Rxb2 {[%clk 0:00:27]}
25. Rxb2 {[%clk 0:01:10.6]} 25... Qxb2 {[%clk 0:00:27.9]} 26. Qc1 {[%clk
0:01:08.7]} 26... Qb3 {[%clk 0:00:20.9]} 27. h4 {[%clk 0:01:03]} 27... Nd4
{[%clk 0:00:20.9]} 28. Kh2 {[%clk 0:00:58.8]} 28... Ne2 {[%clk 0:00:20.1]} 29.
Qc6 {[%clk 0:00:56]} 29... Rf8 {[%clk 0:00:13]} 30. Bd6 {[%clk 0:00:50.5]} 30...
Nd4 {[%clk 0:00:13.2]} 31. Qd5 {[%clk 0:00:47.7]} 31... Rd8 {[%clk 0:00:12.7]}
32. Qxb3 {[%clk 0:00:47.1]} 32... Nxb3 {[%clk 0:00:12.6]} 33. Bb4 {[%clk
0:00:44.6]} 33... a5 {[%clk 0:00:12.2]} 34. Be7 {[%clk 0:00:43.2]} 34... Re8
{[%clk 0:00:11.6]} 35. Bd6 {[%clk 0:00:41.7]} 35... Re6 {[%clk 0:00:11.9]} 36.
Rd1 {[%clk 0:00:39.4]} 36... h5 {[%clk 0:00:09.7]} 37. Bh3 {[%clk 0:00:39.4]}
37... Re2 {[%clk 0:00:09.3]} 38. Kg2 {[%clk 0:00:39.2]} 38... Nd4 {[%clk
0:00:08.8]} 39. Bc5 {[%clk 0:00:36.3]} 39... Ne6 {[%clk 0:00:08.8]} 40. Be3
{[%clk 0:00:35.4]} 40... Ra2 {[%clk 0:00:08]} 41. Rd3 {[%clk 0:00:31.7]} 41...
Bf8 {[%clk 0:00:06.5]} 42. Rb3 {[%clk 0:00:26.7]} 42... Rxa3 {[%clk 0:00:06.1]}
43. Rb6 {[%clk 0:00:24.9]} 43... Nc5 {[%clk 0:00:04.6]} 44. Rb8 {[%clk
0:00:23.6]} 44... Ne6 {[%clk 0:00:04.6]} 45. Bh6 {[%clk 0:00:22.7]} 45... Ra2
{[%clk 0:00:01.7]} 46. Bxe6 {[%clk 0:00:21.3]} 1-0

[Event "Early-Titled-Tuesday-Blitz-September-12-2023"]
[Site "Chess.com"]
[Date "2023.09.12"]
[Round "9"]
[White "ErikRonka"]
[Black "wqws"]
[Result "1-0"]
[WhiteElo "2534"]
[BlackElo "2662"]
[TimeControl "180+1"]
[EndTime "9:45:40 PDT"]
[Termination "ErikRonka won by resignation"]

1. e4 {[%clk 0:03:00.9]} 1... c5 {[%clk 0:02:59.6]} 2. Nf3 {[%clk 0:03:01]} 2...
d6 {[%clk 0:02:59.8]} 3. d4 {[%clk 0:03:01.5]} 3... cxd4 {[%clk 0:03:00.7]} 4.
Nxd4 {[%clk 0:03:02.4]} 4... Nf6 {[%clk 0:03:01]} 5. Nc3 {[%clk 0:03:03.1]} 5...
a6 {[%clk 0:03:01.5]} 6. Nb3 {[%clk 0:02:59.6]} 6... e5 {[%clk 0:03:01.5]} 7.
Bg5 {[%clk 0:02:58]} 7... Be7 {[%clk 0:03:01]} 8. Bxf6 {[%clk 0:02:54.9]} 8...
Bxf6 {[%clk 0:03:00.9]} 9. Qd3 {[%clk 0:02:51]} 9... Be6 {[%clk 0:03:00.1]} 10.
O-O-O {[%clk 0:02:42.2]} 10... Nc6 {[%clk 0:03:00.1]} 11. Qxd6 {[%clk
0:02:35.2]} 11... Qxd6 {[%clk 0:02:53.5]} 12. Rxd6 {[%clk 0:02:36.1]} 12... Be7
{[%clk 0:02:53.3]} 13. Rd1 {[%clk 0:02:31]} 13... O-O {[%clk 0:02:52.5]} 14. Nd5
{[%clk 0:02:25.6]} 14... Bd6 {[%clk 0:02:33.3]} 15. Nb6 {[%clk 0:02:15.7]} 15...
Rad8 {[%clk 0:02:32.3]} 16. Bc4 {[%clk 0:02:15]} 16... a5 {[%clk 0:02:22]} 17.
Bxe6 {[%clk 0:02:07.6]} 17... fxe6 {[%clk 0:02:21.4]} 18. f3 {[%clk 0:02:07.9]}
18... Nd4 {[%clk 0:02:08.2]} 19. Nc4 {[%clk 0:01:56.5]} 19... Bc7 {[%clk
0:02:02.3]} 20. c3 {[%clk 0:01:51.2]} 20... Nxb3+ {[%clk 0:01:56.1]} 21. axb3
{[%clk 0:01:52.1]} 21... b5 {[%clk 0:01:56.6]} 22. Ne3 {[%clk 0:01:48.3]} 22...
h5 {[%clk 0:01:54.5]} 23. Rxd8 {[%clk 0:01:42.1]} 23... Rxd8 {[%clk 0:01:54.6]}
24. Rd1 {[%clk 0:01:42.6]} 24... Rxd1+ {[%clk 0:00:56.4]} 25. Kxd1 {[%clk
0:01:43.5]} 25... Kf7 {[%clk 0:00:52.2]} 26. Kd2 {[%clk 0:01:42.4]} 26... Bb6
{[%clk 0:00:51.6]} 27. Kd3 {[%clk 0:01:42.6]} 27... Bc5 {[%clk 0:00:48.4]} 28.
Nc2 {[%clk 0:00:54.5]} 28... Kf6 {[%clk 0:00:44.6]} 29. b4 {[%clk 0:00:44]}
29... axb4 {[%clk 0:00:44]} 30. cxb4 {[%clk 0:00:37.4]} 30... Bg1 {[%clk
0:00:40.5]} 31. h3 {[%clk 0:00:37.2]} 31... Kg5 {[%clk 0:00:38.2]} 32. Na3
{[%clk 0:00:31.9]} 32... Kf4 {[%clk 0:00:38.2]} 33. Ke2 {[%clk 0:00:30.6]} 33...
Kg3 {[%clk 0:00:22.7]} 34. Kf1 {[%clk 0:00:30.5]} 34... Bd4 {[%clk 0:00:21.3]}
35. Nxb5 {[%clk 0:00:30.9]} 35... Bxb2 {[%clk 0:00:21.2]} 36. Nc7 {[%clk
0:00:30.8]} 36... g5 {[%clk 0:00:21.2]} 37. Nxe6 {[%clk 0:00:29]} 37... g4
{[%clk 0:00:20.3]} 38. hxg4 {[%clk 0:00:27.4]} 38... hxg4 {[%clk 0:00:20]} 39.
Ke2 {[%clk 0:00:25.3]} 39... Bc3 {[%clk 0:00:13.2]} 40. b5 {[%clk 0:00:24.4]}
40... Ba5 {[%clk 0:00:13.6]} 41. Nc5 {[%clk 0:00:22.3]} 41... Bb6 {[%clk
0:00:06.9]} 42. Nd7 {[%clk 0:00:21.7]} 42... Bd4 {[%clk 0:00:07]} 43. b6 {[%clk
0:00:20.6]} 1-0

[Event "Early-Titled-Tuesday-Blitz-September-12-2023"]
[Site "Chess.com"]
[Date "2023.09.12"]
[Round "9"]
[White "MITerryble"]
[Black "GMBenjaminBok"]
[Result "0-1"]
[WhiteElo "2949"]
[BlackElo "3023"]
[TimeControl "180+1"]
[EndTime "9:45:41 PDT"]
[Termination "GMBenjaminBok won by checkmate"]

1. Nf3 {[%clk 0:03:00.9]} 1... Nf6 {[%clk 0:02:59.6]} 2. e3 {[%clk 0:03:00.1]}
2... d5 {[%clk 0:02:59]} 3. b4 {[%clk 0:02:59.7]} 3... Bg4 {[%clk 0:02:51]} 4.
Bb2 {[%clk 0:02:58]} 4... e6 {[%clk 0:02:51.3]} 5. a3 {[%clk 0:02:52.4]} 5...
Nbd7 {[%clk 0:02:49.6]} 6. h3 {[%clk 0:02:51.3]} 6... Bh5 {[%clk 0:02:49]} 7. c4
{[%clk 0:02:45.8]} 7... c6 {[%clk 0:02:47.5]} 8. Qb3 {[%clk 0:02:24.8]} 8... Bd6
{[%clk 0:02:40.2]} 9. d4 {[%clk 0:02:11.6]} 9... Bxf3 {[%clk 0:02:16.1]} 10.
gxf3 {[%clk 0:02:12.5]} 10... O-O {[%clk 0:02:16.1]} 11. c5 {[%clk 0:02:00.3]}
11... Bc7 {[%clk 0:02:14.6]} 12. f4 {[%clk 0:02:01]} 12... Ne4 {[%clk 0:02:07]}
13. Nc3 {[%clk 0:02:00.8]} 13... Nxc3 {[%clk 0:01:42]} 14. Bxc3 {[%clk
0:01:51.6]} 14... Qe7 {[%clk 0:01:39.6]} 15. Bg2 {[%clk 0:01:31.6]} 15... f6
{[%clk 0:01:33.6]} 16. O-O {[%clk 0:01:28.6]} 16... Kh8 {[%clk 0:01:29.9]} 17.
b5 {[%clk 0:01:19.7]} 17... Rac8 {[%clk 0:00:38.5]} 18. bxc6 {[%clk 0:01:11.6]}
18... bxc6 {[%clk 0:00:39.4]} 19. Qb7 {[%clk 0:01:10.5]} 19... Bb8 {[%clk
0:00:37.6]} 20. Rab1 {[%clk 0:00:51.4]} 20... Rg8 {[%clk 0:00:29.7]} 21. e4
{[%clk 0:00:23.5]} 21... Bxf4 {[%clk 0:00:20.4]} 22. Rfe1 {[%clk 0:00:18.7]}
22... Qf7 {[%clk 0:00:17.5]} 23. exd5 {[%clk 0:00:11.5]} 23... exd5 {[%clk
0:00:17.2]} 24. Rb2 {[%clk 0:00:11.2]} 24... Rc7 {[%clk 0:00:09.1]} 25. Qa6
{[%clk 0:00:11]} 25... Nf8 {[%clk 0:00:08.3]} 26. Rbe2 {[%clk 0:00:10.4]} 26...
Ng6 {[%clk 0:00:07.8]} 27. Re6 {[%clk 0:00:10]} 27... Nh4 {[%clk 0:00:07.3]} 28.
Kh1 {[%clk 0:00:05.5]} 28... Qg6 {[%clk 0:00:05.9]} 29. Qf1 {[%clk 0:00:05]}
29... Qf5 {[%clk 0:00:04.9]} 30. Ba5 {[%clk 0:00:03.2]} 30... Rcc8 {[%clk
0:00:04.3]} 31. Re7 {[%clk 0:00:03.7]} 31... h6 {[%clk 0:00:04.6]} 32. Rxa7
{[%clk 0:00:02.3]} 32... Ra8 {[%clk 0:00:04.2]} 33. Bb6 {[%clk 0:00:02.6]} 33...
Rxa7 {[%clk 0:00:03.3]} 34. Bxa7 {[%clk 0:00:03.5]} 34... Ra8 {[%clk 0:00:03.4]}
35. Bb6 {[%clk 0:00:02.5]} 35... Rxa3 {[%clk 0:00:03.2]} 36. f3 {[%clk
0:00:02.5]} 36... Ra2 {[%clk 0:00:02.8]} 37. Re2 {[%clk 0:00:03.1]} 37... Rxe2
{[%clk 0:00:02.7]} 38. Qxe2 {[%clk 0:00:04]} 38... Qb1+ {[%clk 0:00:02.6]} 39.
Bf1 {[%clk 0:00:04.4]} 39... Qc1 {[%clk 0:00:02.5]} 40. Kg1 {[%clk 0:00:04]}
40... Nf5 {[%clk 0:00:01.9]} 41. Qe8+ {[%clk 0:00:03.2]} 41... Kh7 {[%clk
0:00:02]} 42. Kg2 {[%clk 0:00:02.1]} 42... Ne3+ {[%clk 0:00:01.9]} 43. Kf2
{[%clk 0:00:02.6]} 43... Qxf1# {[%clk 0:00:01.9]} 0-1